bitfinex-derivatives/quotes_ETHF0:USTF0_20250926
["timestamp","ask_amount","ask_price","bid_price","bid_amount"]
[1758881666502,0.1284,3892.5,3892.1,41.26209]
[1758881666705,12.70786,3892.1,3890.3,0.11758904]
[1758881666897,0.46252,3888.6,3888.5,0.01708811]
[1758881667101,0.46252,3888.6,3887.5,0.6846829]
[1758881667102,0.4626,3887.9,3887.5,0.6846829]
[1758881667300,0.4626,3887.9,3887.3,0.149]
[1758881667301,9.16900316,3887.4,3887.3,0.149]
[1758881667511,0.3249,3887.4,3887.3,0.149]
[1758881667703,9.16900316,3887.4,3887.3,0.8336829]
[1758881667905,0.46267,3887.3,3887.2,0.301]
[1758881668200,0.78757,3887.3,3887.1,0.301]
[1758881668604,0.3249,3887.2,3887.1,0.301]
[1758881669503,0.1284,3887.5,3886.4,40.8]
[1758881669806,0.3249,3886.8,3886.5,0.301]
[1758881670304,0.08037729,3886.7,3886.6,5.0]
[1758881670604,0.08037729,3886.7,3886.5,0.301]
[1758881670811,0.08037729,3886.6,3886.5,0.301]
[1758881672505,0.05465613,3886.6,3886.5,0.301]
[1758881673211,0.46273,3886.8,3886.5,0.301]
[1758881673811,0.85323,3886.8,3886.5,0.301]
[1758881674011,0.46275,3886.6,3886.5,0.301]
[1758881674207,0.46275,3886.6,3886.5,0.2994]
[1758881674408,0.3905,3886.9,3886.5,5.2994]
[1758881674610,0.85321,3886.9,3886.5,0.2994]
[1758881675617,0.3905,3886.7,3886.5,0.2994]
[1758881678618,0.3905,3886.6,3886.5,0.2994]
[1758881679214,0.1284,3887.0,3886.5,5.2994]
[1758881679522,0.1284,3887.0,3886.8,0.46272]
[1758881679720,0.5189,3887.0,3886.9,0.298]
[1758881682318,0.46267,3887.4,3886.9,5.76071]
[1758881682616,0.1284,3887.5,3887.1,0.46269]
[1758881682617,0.3905,3887.3,3887.1,0.46269]
[1758881682825,0.1284,3887.5,3887.3,0.46267]
[1758881683117,0.5189,3887.5,3887.2,0.297]
[1758881683322,0.1284,3887.5,3887.2,0.297]
[1758881683518,0.3905,3887.4,3887.3,40.8]
[1758881684119,0.3905,3887.4,3887.3,41.26266]
[1758881684519,0.47086439,3887.4,3887.3,41.26266]
[1758881686119,0.08036439,3887.4,3887.3,46.26266]
[1758881686320,0.3905,3887.8,3887.7,0.46262]
[1758881686526,0.47085568,3887.8,3887.7,0.75862]
[1758881692338,0.47085568,3887.8,3887.7,0.296]
[1758881695839,0.0257,3888.2,3888.1,0.46257]
[1758881696138,0.0257,3888.2,3887.5,1.15659]
[1758881696139,0.9035,3887.6,3887.5,0.46264]
[1758881696334,0.9035,3887.6,3887.5,40.87464]
[1758881696535,0.6192,3887.6,3887.5,40.87464]
[1758881697345,0.3905,3887.6,3887.5,40.87464]
[1758881697939,0.3905,3887.9,3887.8,0.4626]
[1758881698141,0.93008545,3887.9,3887.8,0.7556]
[1758881698634,0.5513,3888.0,3887.8,0.7556]
[1758881698839,0.1608,3888.0,3887.8,0.293]
[1758881699042,0.3905,3887.9,3887.8,0.293]
[1758881699442,0.62339,3888.0,3887.8,0.293]
[1758881699443,0.62339,3888.0,3887.8,0.4626]
[1758881699643,0.3905,3887.9,3887.8,0.4626]
[1758881699846,0.3905,3887.9,3887.8,40.8726]
[1758881700041,0.3905,3887.9,3887.8,0.4626]
[1758881700347,0.0257,3888.2,3888.1,0.46257]
[1758881700543,0.2884,3888.2,3888.1,0.75457]
[1758881700743,0.2627,3888.2,3888.1,0.75457]
[1758881700948,0.68,3888.2,3888.1,0.75457]
[1758881701638,0.4173,3888.2,3888.1,0.75457]
[1758881701835,0.5457,3888.5,3888.4,0.46254]
[1758881702038,0.5457,3888.5,3888.4,0.75454]
[1758881702239,0.8084,3888.5,3888.4,0.46254]
[1758881702450,0.8084,3888.5,3888.4,81.67154]
[1758881702645,0.8084,3888.5,3888.4,41.26254]
[1758881702849,0.5471,3888.3,3888.2,0.46256]
[1758881703049,0.9644,3888.3,3888.2,40.86956]
[1758881703348,0.1284,3888.5,3887.8,0.46261]
[1758881703349,0.5471,3887.9,3887.8,0.46261]
[1758881703538,0.9644,3887.9,3887.8,40.86961]
[1758881703857,0.46263,3887.7,3887.4,40.8]
[1758881704043,0.5875,3887.5,3887.4,41.26265]
[1758881704244,0.5875,3887.5,3887.4,40.8]
[1758881704548,1.12701591,3887.5,3887.4,41.091]
[1758881705548,1.65301591,3887.5,3887.4,0.291]
[1758881706951,1.65301591,3887.5,3887.3,41.26266]
[1758881707155,0.4044,3887.4,3887.3,81.37966]
[1758881707345,0.4044,3887.4,3887.3,81.207]
[1758881707346,1.40104672,3887.4,3887.3,81.207]
[1758881707852,1.01874548,3887.4,3887.3,81.207]
[1758881708355,0.0803584,3887.4,3887.3,93.79562526]
[1758881708548,1e-08,3887.4,3887.3,93.79562526]
[1758881710155,1e-08,3887.4,3887.3,53.38862526]
[1758881710451,1e-08,3887.4,3887.3,93.79662526]
[1758881712846,0.0257,3887.9,3887.3,94.95328526]
[1758881713042,0.4301,3887.9,3887.8,0.46261]
[1758881713246,0.7103,3887.9,3887.8,0.75161]
[1758881713551,0.1702,3888.0,3887.8,0.75161]
[1758881713751,0.5746,3888.0,3887.8,0.75161]
[1758881713947,0.4044,3887.9,3887.8,0.75161]
[1758881714359,0.9479,3887.9,3887.8,40.86861]
[1758881714853,0.6846,3887.4,3887.3,41.26267]
[1758881715154,0.6846,3887.4,3887.3,81.66767]
[1758881715745,0.9479,3887.4,3887.3,40.86767]
[1758881717455,0.9479,3887.4,3887.3,0.46267]
[1758881717651,0.9479,3887.4,3887.3,40.86867]
[1758881718359,0.4044,3887.4,3887.3,40.86867]
[1758881719255,0.1567,3887.5,3886.9,40.8]
[1758881719461,0.9479,3887.4,3887.3,0.46267]
[1758881719757,0.1567,3887.5,3887.3,0.75067]
[1758881719962,0.5611,3887.5,3887.3,0.75067]
[1758881720164,0.4044,3887.4,3887.3,0.75067]
[1758881720457,0.0257,3887.7,3887.6,0.46263]
[1758881720762,0.4044,3887.7,3887.6,0.75063]
[1758881721160,0.6846,3887.7,3887.6,0.75063]
[1758881721656,0.4044,3887.7,3887.6,0.75063]
[1758881721856,0.4044,3887.7,3887.6,40.86863]
[1758881722961,0.4044,3887.7,3887.6,0.46263]
[1758881723257,0.1702,3888.0,3887.9,0.4626]
[1758881723461,0.5746,3888.0,3887.9,0.7496]
[1758881723761,0.8548,3888.0,3887.9,0.7496]
[1758881723949,1.1181,3888.0,3887.9,0.7496]
[1758881724154,1.1181,3888.0,3887.9,0.4626]
[1758881724360,1.1181,3888.0,3887.9,40.8666]
[1758881724957,1.1181,3888.0,3887.9,0.4626]
[1758881725171,1.1181,3888.0,3887.9,40.404]
[1758881725461,0.4044,3887.4,3887.3,8.05129526]
[1758881725658,0.4044,3887.4,3887.3,48.45529526]
[1758881726262,0.9479,3887.4,3887.3,40.57967]
[1758881726466,0.9479,3887.4,3887.3,40.86667]
[1758881726762,0.9479,3887.4,3887.3,0.74867]
[1758881727465,0.9479,3887.4,3887.3,0.286]
[1758881728156,1.304,3887.0,3886.9,40.8]
[1758881728356,0.6677,3886.6,3886.5,40.57976]
[1758881728549,0.6677,3886.6,3886.5,40.86576]
[1758881728752,0.1567,3887.0,3886.9,0.46272]
[1758881728951,0.1567,3887.0,3886.9,0.74872]
[1758881729158,0.4369,3887.0,3886.9,0.46272]
[1758881729372,0.8413,3887.0,3886.9,40.86672]
[1758881730555,0.8413,3887.0,3886.9,0.46272]
[1758881730752,0.8413,3887.0,3886.9,40.86772]
[1758881731064,0.5611,3887.0,3886.9,40.86772]
[1758881733765,0.1567,3887.5,3887.4,0.46266]
[1758881734062,0.4278,3887.5,3887.4,0.74766]
[1758881734261,0.8195,3887.5,3887.4,0.74766]
[1758881734859,0.5484,3887.5,3887.4,0.74766]
[1758881735667,0.4413,3888.0,3887.9,0.7312]
[1758881735857,0.79895231,3888.0,3887.9,1.0162]
[1758881736461,0.79895231,3888.0,3887.9,0.7312]
[1758881736964,0.79895231,3888.0,3887.9,1.0162]
[1758881737768,1.19065231,3888.0,3887.9,1.0162]
[1758881737970,1.19065168,3888.0,3887.9,1.0162]
[1758881739079,1.19065168,3888.0,3887.9,1.2794]
[1758881739369,1.1103,3888.0,3887.9,1.2794]
[1758881739761,0.9401,3887.9,3887.8,0.46261]
[1758881739957,0.9401,3887.9,3887.8,0.74661]
[1758881740364,0.9401,3887.9,3887.8,40.8]
[1758881740566,0.9401,3887.9,3887.8,0.284]
[1758881741372,0.9401,3887.9,3887.8,0.5526]
[1758881742071,0.9401,3887.9,3887.8,0.284]
[1758881742277,1.02045493,3887.9,3887.8,0.284]
[1758881742473,1.02045493,3887.9,3887.7,0.46262]
[1758881742775,0.9401,3887.9,3887.8,0.284]
[1758881742965,1.02045494,3887.9,3887.8,0.284]
[1758881743369,0.74315494,3887.9,3887.8,1.1963]
[1758881743567,0.3917,3887.9,3887.8,1.1963]
[1758881743774,0.6885,3888.2,3888.1,0.5318]
[1758881743974,1.04614775,3888.2,3888.1,1.27737]
[1758881745275,1.04614775,3888.2,3888.1,1.01417]
[1758881745972,1.04614775,3888.2,3888.1,0.73117]
[1758881746474,1.04614775,3888.2,3888.1,0.283]
[1758881746869,0.6628,3887.4,3887.3,41.26267]
[1758881747170,0.9401,3887.4,3887.3,0.46267]
[1758881747369,0.9401,3887.4,3886.8,0.3805]
[1758881747370,0.5484,3886.9,3886.8,0.46272]
[1758881747574,0.9401,3886.9,3886.8,0.74572]
[1758881748472,0.46267,3887.3,3887.2,0.99448]
[1758881748473,0.2711,3887.3,3887.2,0.99448]
[1758881748674,0.74316634,3887.3,3887.2,1.27748]
[1758881748874,1.02046634,3887.3,3887.2,0.8148]
[1758881749073,1.02046634,3887.3,3887.2,0.283]
[1758881750176,1.02046634,3887.3,3886.4,49.64301699]
[1758881750177,0.1606,3885.5,3884.3,2.30823088]
[1758881750369,0.1606,3885.5,3883.4,4.16598032]
[1758881750370,8.88261699,3884.4,3883.4,1.0]
[1758881750569,8.88261699,3884.4,3883.4,0.91614371]
[1758881750570,0.50272,3883.5,3883.4,0.91614371]
[1758881750769,1.12152135,3883.5,3883.4,4.371e-05]
[1758881751073,0.46318,3883.0,3882.9,0.02575428]
[1758881751272,0.54360217,3883.0,3882.9,0.71895428]
[1758881751574,5.54360217,3883.0,3882.9,0.71895428]
[1758881751769,6.08198135,3883.0,3882.9,0.71895428]
[1758881751970,14.92499834,3883.0,3882.9,0.02575428]
[1758881752177,16.52372607,3883.0,3882.9,0.32875428]
[1758881752371,2.68070908,3883.0,3882.9,0.71895428]
[1758881752768,7.68070908,3883.0,3882.9,0.71895428]
[1758881753178,7.68070908,3883.0,3882.0,0.1652]
[1758881753179,0.46321,3882.8,3882.0,0.1652]
[1758881753472,0.71438729,3882.7,3882.5,0.1652]
[1758881753673,10.90492472,3883.0,3882.6,0.041]
[1758881753874,0.71459766,3882.9,3882.6,0.041]
[1758881754082,0.08046683,3882.8,3882.5,0.1652]
[1758881754274,0.08046683,3882.7,3882.5,0.1652]
[1758881754469,0.08046683,3882.6,3882.5,0.1652]
[1758881754680,0.08046683,3882.6,3882.5,40.6092]
[1758881754876,0.08046683,3882.6,3882.5,40.6112]
[1758881755276,0.08046683,3882.6,3882.5,41.0014]
[1758881755473,0.08046683,3882.6,3882.5,0.5554]
[1758881755678,0.08046683,3882.6,3882.5,41.0034]
[1758881756076,0.08046683,3882.6,3882.5,41.0044]
[1758881756276,8.84301699,3883.7,3882.5,41.0044]
[1758881756277,0.10146547,3885.5,3882.5,86.4142]
[1758881756474,0.463,3884.6,3883.6,0.4631]
[1758881756680,0.46297,3884.8,3884.6,0.3902]
[1758881756880,8.84301699,3885.2,3884.5,0.5554]
[1758881756881,0.46299,3884.6,3884.5,0.5554]
[1758881757078,1.09510332,3884.6,3884.5,0.7134]
[1758881757278,6.09510332,3884.6,3884.5,0.7134]
[1758881757780,6.09510332,3884.6,3884.5,0.8604]
[1758881759175,0.46304,3884.2,3884.1,0.3902]
[1758881759379,8.84301699,3884.7,3884.1,0.305]
[1758881759576,1.09442074,3884.6,3884.5,0.5554]
[1758881759981,1.09442074,3884.6,3884.5,0.8604]
[1758881760282,0.46299,3884.6,3884.5,0.8604]
[1758881760789,5.46299,3884.6,3884.5,0.5554]
[1758881760969,5.46299,3884.6,3884.5,0.8604]
[1758881761170,5.46299,3884.6,3884.5,0.5554]
[1758881761472,0.46299,3884.6,3884.5,0.8604]
[1758881762282,0.46297,3884.8,3884.6,0.4707]
[1758881763376,0.46299,3884.6,3884.5,0.1652]
[1758881763574,0.46299,3884.6,3884.5,0.4692]
[1758881763984,0.46299,3884.6,3884.5,0.6359]
[1758881764186,0.46299,3884.6,3884.5,0.9399]
[1758881764386,0.46299,3884.6,3884.5,0.9383]
[1758881764586,0.46298,3884.7,3884.6,0.4491]
[1758881764981,0.46292,3885.2,3885.1,0.4491]
[1758881765178,1.09397547,3885.2,3885.1,0.7521]
[1758881765684,0.46292,3885.2,3885.1,0.7521]
[1758881765881,0.46291,3885.3,3885.2,0.4491]
[1758881766688,0.46291,3885.3,3885.2,0.7521]
[1758881766881,0.46291,3885.3,3885.2,0.4491]
[1758881767073,5.46291,3885.3,3885.2,0.5941]
[1758881767273,6.09427824,3885.3,3885.2,0.5941]
[1758881767474,6.09427824,3885.3,3885.2,0.7521]
[1758881767973,6.09427824,3885.3,3885.2,0.4491]
[1758881768180,6.09427824,3885.3,3885.2,0.7521]
[1758881768379,6.17470369,3885.3,3885.2,0.7521]
[1758881770884,6.17470369,3885.3,3885.2,0.4491]
[1758881771188,1.17470369,3885.3,3885.2,0.7511]
[1758881771782,1.17470369,3885.3,3885.2,0.4491]
[1758881771984,1.17470369,3885.3,3885.2,0.7511]
[1758881772486,1.17470369,3885.3,3885.2,0.7501]
[1758881774488,0.71179369,3885.3,3885.2,0.7501]
[1758881775679,0.71179369,3885.3,3885.2,1.3784]
[1758881778891,0.0257,3885.9,3885.5,0.1982]
[1758881779206,0.0257,3885.9,3885.8,1.0774]
[1758881779702,0.46283,3886.0,3885.9,1.0774]
[1758881779904,0.46283,3886.0,3885.6,0.299]
[1758881779905,2.56599521,3886.2,3886.1,1.0774]
[1758881780099,1.79741129,3886.6,3886.1,0.9273]
[1758881780100,1.78781129,3886.4,3886.1,0.9273]
[1758881780304,0.46279,3886.3,3886.2,1.0774]
[1758881780507,0.46278,3886.4,3886.3,0.4491]
[1758881780698,0.46278,3886.4,3886.3,1.0774]
[1758881781906,0.46278,3886.4,3886.3,0.4491]
[1758881782099,0.46278,3886.4,3886.3,0.7471]
[1758881782596,0.46285,3885.8,3885.7,0.4491]
[1758881782797,0.46285,3885.8,3885.7,0.7471]
[1758881782999,2.51384802,3886.6,3886.5,0.1982]
[1758881783196,0.47236,3886.6,3886.5,0.9463]
[1758881785502,0.47236,3886.6,3886.5,0.6473]
[1758881785804,0.46281,3886.1,3886.0,0.1982]
[1758881786109,0.46281,3886.1,3886.0,0.4962]
[1758881786300,0.46281,3886.1,3886.0,0.9453]
[1758881786503,0.46278,3886.4,3886.2,0.4491]
[1758881787003,0.46281,3886.1,3886.0,0.6473]
[1758881787202,0.46281,3886.1,3886.0,0.9453]
[1758881787707,0.46279,3886.3,3886.1,0.4491]
[1758881788302,0.46279,3886.3,3886.2,1.0774]
[1758881788500,2.57472181,3886.6,3886.2,1.0774]
[1758881788696,0.0096,3886.6,3886.5,1.2756]
[1758881788903,0.0096,3886.6,3886.5,1.5726]
[1758881789401,0.0096,3886.6,3886.0,0.1982]
[1758881789607,0.0096,3886.6,3880.9,4.51764322]
[1758881789608,0.469,3882.9,3881.5,0.127]
[1758881789901,0.1984,3883.0,3881.0,0.13141477]
[1758881789902,0.469,3882.4,3881.0,0.13141477]
[1758881790210,0.46329,3882.1,3881.1,41.109]
[1758881790405,0.46327,3882.2,3881.2,0.46338]
[1758881790705,0.93225,3882.4,3881.3,0.46337]
[1758881790907,1.23834155,3882.3,3881.1,41.57239]
[1758881791109,0.77507155,3882.2,3881.1,41.57239]
[1758881791404,0.77507155,3882.1,3881.1,41.57239]
[1758881791703,0.77507155,3882.0,3881.2,0.46338]
[1758881791908,0.77507155,3881.9,3881.3,0.2894]
[1758881792107,0.77507155,3881.8,3881.3,0.2894]
[1758881792405,0.77507155,3881.7,3881.3,0.2894]
[1758881792607,0.77507155,3881.6,3881.3,0.2894]
[1758881792804,1.23843155,3881.5,3881.3,0.2894]
[1758881793108,0.77507155,3881.4,3881.2,0.2894]
[1758881793304,0.77507155,3881.3,3881.2,0.2894]
[1758881793703,0.1863,3882.0,3881.2,0.75278]
[1758881793903,0.1863,3882.0,3881.4,0.46336]
[1758881794110,0.1863,3882.0,3881.5,0.307]
[1758881794309,0.6569,3882.0,3881.5,5.76715]
[1758881794601,0.4706,3882.4,3881.6,5.0]
[1758881794805,0.93386,3882.4,3881.5,0.3038]
[1758881795204,0.93386,3882.4,3881.7,0.46332]
[1758881795904,0.46327,3882.3,3881.5,0.3038]
[1758881797005,0.4706,3882.1,3881.7,0.46332]
[1758881797399,0.46328,3882.2,3881.7,0.46332]
[1758881797600,0.1863,3881.5,3881.1,40.8]
[1758881797800,0.1863,3881.5,3881.2,40.467]
[1758881798002,0.4706,3881.4,3881.2,40.467]
[1758881798403,0.4706,3881.3,3881.2,40.467]
[1758881799917,0.4706,3881.3,3881.1,40.8]
[1758881800106,0.46339,3881.3,3881.1,40.8]
[1758881800307,0.46339,3881.3,3881.2,40.471]
[1758881800508,0.1863,3881.5,3881.2,40.471]
[1758881800808,0.4706,3881.7,3881.5,0.46335]
[1758881801016,0.4706,3881.7,3881.6,0.306]
[1758881801717,0.4706,3881.7,3881.6,5.306]
[1758881801919,0.4706,3881.7,3881.6,0.306]
[1758881802109,0.1863,3882.0,3881.6,0.306]
[1758881802110,0.6496,3882.0,3881.6,5.76934]
[1758881802305,0.6496,3882.0,3881.6,0.76934]
[1758881802515,0.4706,3881.8,3881.6,0.76934]
[1758881803313,0.6496,3882.0,3881.8,0.46332]
[1758881803314,0.4706,3881.9,3881.8,0.46332]
[1758881803814,0.1863,3882.0,3881.8,0.46332]
[1758881804015,0.6569,3882.0,3881.9,0.305]
[1758881804216,0.6569,3882.0,3881.9,41.105]
[1758881804416,0.1863,3882.0,3881.9,46.105]
[1758881804616,0.0257,3882.1,3882.0,0.4633]
[1758881805021,0.4963,3882.1,3882.0,0.4633]
[1758881805421,0.4706,3882.1,3882.0,0.4633]
[1758881805720,0.59997381,3882.1,3882.0,0.4633]
[1758881805917,0.59997381,3882.1,3882.0,5.4633]
[1758881806717,0.59997381,3882.1,3882.0,45.475]
[1758881807321,0.12937381,3882.1,3882.0,45.475]
[1758881807712,0.59997381,3882.1,3882.0,45.475]
[1758881807915,0.12937381,3882.1,3882.0,45.475]
[1758881808114,0.669,3882.5,3882.4,0.46325]
[1758881808313,0.669,3882.5,3882.4,0.76625]
[1758881808509,0.79840856,3882.5,3882.4,0.76625]
[1758881809121,0.669,3882.5,3882.4,0.76625]
[1758881809717,0.0257,3882.9,3882.8,0.4632]
[1758881809918,0.0257,3882.9,3882.8,0.7662]
[1758881810121,0.4963,3882.9,3882.8,0.7662]
[1758881810320,0.4963,3882.9,3882.8,41.5662]
[1758881810622,0.4963,3882.9,3882.8,40.8]
[1758881810920,0.60010775,3882.9,3882.8,41.103]
[1758881811222,0.1863,3882.0,3881.9,0.46331]
[1758881811413,0.6569,3882.0,3881.9,40.93731]
[1758881811918,0.6569,3882.0,3881.9,81.73731]
[1758881812123,0.4706,3882.3,3882.2,0.46327]
[1758881812424,0.4706,3882.3,3882.2,0.76527]
[1758881817222,0.60070799,3882.3,3882.2,0.76527]
[1758881818221,7.99e-06,3882.3,3882.2,1.31747]
[1758881819325,7.99e-06,3882.3,3882.2,1.49007]
[1758881819524,7.99e-06,3882.3,3882.2,9.09750025]
[1758881819730,0.0257,3882.7,3882.6,1.11113]
[1758881819925,0.6401,3882.7,3882.6,9.01856025]
[1758881820124,0.6144,3882.7,3882.6,9.01856025]
[1758881820324,1.0836,3882.7,3882.6,9.01856025]
[1758881820525,1.69818065,3882.7,3882.6,9.01856025]
[1758881823726,1.69818065,3882.7,3882.6,1.41113]
[1758881824729,1.0836,3882.7,3882.6,1.41113]
[1758881825528,1.0836,3882.7,3882.6,1.11113]
[1758881825731,1.69739576,3882.7,3882.6,41.57513]
[1758881825924,1.69739576,3882.7,3882.6,1.11113]
[1758881826124,1.69739576,3882.7,3882.6,40.463]
[1758881826919,1.69739576,3882.7,3882.5,0.46324]
[1758881827124,1.0836,3882.7,3882.6,40.463]
[1758881827326,1.69733473,3882.7,3882.6,40.463]
[1758881828028,1.69733473,3882.7,3882.5,0.46324]
[1758881828332,1.27800744,3882.6,3882.5,0.46324]
[1758881828632,1.74630744,3882.6,3882.5,40.92624]
[1758881830742,0.61400744,3882.6,3882.5,41.28024]
[1758881831436,1.08230744,3882.6,3882.5,41.28024]
[1758881831636,1.21255613,3882.6,3882.5,41.28024]
[1758881832734,0.212,3883.0,3882.8,0.8172]
[1758881832735,0.4683,3882.9,3882.8,0.8172]
[1758881833036,0.4683,3882.9,3882.8,1.7823]
[1758881833233,0.4683,3882.4,3881.9,48.76143025]
[1758881833436,0.793,3882.1,3882.0,40.9253]
[1758881833636,0.793,3882.1,3882.0,41.2793]
[1758881833932,0.4683,3882.1,3882.0,41.2793]
[1758881834139,0.858,3882.5,3882.4,1.13235]
[1758881834337,1.3263,3882.5,3882.4,1.42735]
[1758881835036,0.987,3882.5,3882.4,1.78135]
[1758881835237,0.4683,3882.5,3882.4,1.78135]
[1758881836443,0.987,3882.5,3882.4,1.42735]
[1758881836643,1.3443,3883.0,3882.9,0.79999]
[1758881836943,1.3443,3883.0,3882.9,1.42729]
[1758881838436,0.494,3883.0,3882.9,1.78129]
[1758881838840,0.0257,3883.0,3882.9,1.78129]
[1758881839235,0.0257,3883.0,3882.9,42.58129]
[1758881839434,0.494,3883.0,3882.9,42.58129]
[1758881839632,0.688,3883.0,3882.9,42.22729]
[1758881840140,0.688,3883.0,3882.9,42.58129]
[1758881840353,0.0257,3883.0,3882.9,42.58129]
[1758881841437,0.494,3883.0,3882.9,42.28629]
[1758881841741,0.0257,3883.0,3882.9,42.28629]
[1758881842047,0.6546,3883.5,3883.4,1.48623]
[1758881842251,1.3186,3883.5,3883.4,1.42523]
[1758881843036,0.511,3884.0,3883.9,0.46307]
[1758881843236,0.664,3884.0,3883.9,1.93677]
[1758881843636,0.194,3884.5,3884.3,1.13212]
[1758881843637,0.3247,3884.4,3884.3,1.13212]
[1758881843839,0.3247,3884.4,3884.3,1.93672]
[1758881844037,0.664,3884.4,3884.3,1.93672]
[1758881844350,0.664,3884.4,3879.7,3.16598032]
[1758881844351,0.115,3884.0,3882.2,0.5116]
[1758881844638,0.115,3884.0,3882.3,0.293]
[1758881844639,0.46325,3882.4,3882.3,0.293]
[1758881844844,8.79054359,3882.4,3882.3,0.293]
[1758881845046,13.79054359,3882.4,3882.3,0.293]
[1758881845643,0.46327,3882.2,3882.0,0.7066]
[1758881845841,0.46329,3882.0,3881.6,0.5116]
[1758881846042,0.71986334,3881.9,3881.7,0.294]
[1758881846345,0.71986334,3881.8,3881.7,0.8056]
[1758881846536,0.71986334,3881.8,3881.7,1.4747]
[1758881847246,0.71986334,3881.8,3881.7,1.93803]
[1758881848440,0.12691259,3881.8,3881.7,1.93803]
[1758881849244,0.12691259,3881.8,3881.7,1.4747]
[1758881849446,0.46333,3881.7,3881.5,0.195]
[1758881849649,0.46339,3881.3,3880.5,0.195]
[1758881849845,0.7211325,3881.2,3881.1,0.058]
[1758881850439,0.7211325,3881.2,3880.5,0.195]
[1758881850440,0.4634,3881.1,3880.5,0.195]
[1758881850641,1.1845325,3881.1,3881.0,0.29841477]
[1758881850844,6.1845325,3881.1,3881.0,0.29841477]
[1758881851553,0.46344,3880.8,3880.7,0.4679]
[1758881851747,0.58995203,3880.8,3880.7,0.7619]
[1758881851948,1.1845725,3880.8,3880.7,0.7619]
[1758881852248,6.1845725,3880.8,3880.7,0.294]
[1758881852849,5.7211325,3880.8,3880.1,0.294]
[1758881853044,7.60743025,3880.4,3880.1,0.294]
[1758881853345,0.46351,3880.2,3880.1,0.7619]
[1758881853550,1.1846425,3880.2,3880.1,0.7619]
[1758881853856,0.12651203,3880.2,3880.1,0.7619]
[1758881854150,0.46335,3881.6,3881.5,0.1917]
[1758881854351,1.05595809,3881.6,3881.5,0.9536]
[1758881854546,1.05595809,3881.6,3881.5,0.6596]
[1758881854748,0.59260809,3881.6,3881.5,0.9536]
[1758881854951,0.59260809,3881.7,3881.5,0.9536]
[1758881855148,0.59260809,3881.6,3881.5,0.9536]
[1758881856145,7.60743025,3882.7,3882.1,0.4679]
[1758881856344,1.05573965,3882.6,3882.5,0.6596]
[1758881856545,1.05573965,3882.6,3882.5,0.8296]
[1758881856951,1.05573965,3882.6,3882.5,0.6596]
[1758881857152,1.05573965,3882.6,3882.5,0.9536]
[1758881857850,0.59251965,3882.6,3882.5,0.9536]
[1758881858554,0.59251965,3882.6,3882.5,0.6596]
[1758881858750,0.46319,3883.0,3882.6,0.4679]
[1758881858949,0.59236846,3882.9,3882.6,0.4679]
[1758881859247,0.59236846,3882.8,3882.6,0.93112]
[1758881859454,7.60743025,3883.6,3882.6,0.46322]
[1758881859651,0.59240379,3883.5,3883.0,0.1917]
[1758881859951,0.46314,3883.3,3883.2,0.4679]
[1758881860152,1.05554379,3883.3,3883.2,0.4679]
[1758881862152,0.46322,3882.6,3882.5,0.1917]
[1758881862351,0.46326,3882.4,3882.2,40.8]
[1758881862552,0.46326,3882.4,3882.3,0.292]
[1758881863552,1.06580778,3882.4,3882.3,0.292]
[1758881864253,1.06580778,3882.4,3882.3,0.7599]
[1758881866253,1.19931333,3882.4,3882.3,0.7599]
[1758881866462,0.73605333,3882.4,3882.3,0.7599]
[1758881867956,0.73605333,3882.4,3882.0,0.6596]
[1758881867957,5.73605333,3882.4,3882.0,0.6596]
[1758881868154,0.46328,3882.1,3882.0,0.6596]
[1758881868457,1.19933333,3882.1,3882.0,0.4827]
[1758881868651,1.19933333,3882.1,3882.0,0.291]
[1758881869657,1.19933333,3882.1,3882.0,0.9506]
[1758881870254,1.19933333,3882.1,3882.0,0.6596]
[1758881870453,0.46334,3881.6,3881.5,0.6596]
[1758881870650,0.46334,3881.6,3880.5,0.1917]
[1758881870651,12.74241,3881.5,3880.5,0.1917]
[1758881870865,11.5832,3881.8,3880.5,0.4837]
[1758881870866,0.46346,3880.6,3880.5,0.4837]
[1758881871056,0.59696555,3880.6,3880.5,0.4837]
[1758881871368,1.19951333,3880.6,3880.5,0.9516]
[1758881872760,0.13350555,3880.6,3880.5,0.9516]
[1758881873758,0.73667825,3880.6,3880.5,0.9516]
[1758881874457,5.73667825,3880.6,3880.5,0.1917]
[1758881874759,0.73667825,3880.6,3880.5,0.1917]
[1758881875165,0.73667825,3880.6,3880.5,0.4837]
[1758881876551,0.73667825,3880.6,3880.5,0.9516]
[1758881876757,0.46338,3881.3,3881.1,0.4679]
[1758881876967,0.60386742,3881.2,3881.1,0.4679]
[1758881877151,0.60386742,3881.2,3881.1,0.7599]
[1758881879267,0.60386742,3881.2,3881.1,1.2233]
[1758881879763,0.0257,3883.0,3882.5,0.1917]
[1758881879965,0.46321,3882.7,3882.6,0.4679]
[1758881880958,14.33414483,3882.7,3882.5,0.1917]
[1758881881262,14.33414483,3882.7,3882.6,0.4764]
[1758881881462,0.46321,3882.8,3882.6,0.4764]
[1758881881969,0.0257,3883.0,3882.7,0.4632]
[1758881882265,0.0257,3883.0,3882.8,0.4764]
[1758881882466,0.0257,3883.0,3882.9,0.75708]
[1758881882767,1.15765,3884.0,3883.1,0.4764]
[1758881882959,0.46316,3883.2,3883.1,0.4764]
[1758881884965,0.46313,3883.5,3883.1,0.4764]
[1758881885667,0.0257,3883.6,3883.5,0.6882]
[1758881886062,0.0257,3883.6,3883.5,0.9782]
[1758881886365,0.0257,3883.6,3883.5,0.6882]